bitfinex-derivatives/quotes_SOLF0:USTF0_20250514
["timestamp","ask_amount","ask_price","bid_price","bid_amount"]
[1747243779626,72.88,174.69,174.56,72.88]
[1747243779828,78.544,174.68,174.58,16.53212663]
[1747243780129,72.82,174.68,174.59,3.6372]
[1747243780421,72.82,174.67,174.59,3.6372]
[1747243780927,5.725,174.65,174.63,5.7255]
[1747243781127,72.82,174.67,174.63,5.7255]
[1747243781428,5.7246,174.66,174.63,5.7255]
[1747243781726,5.7246,174.66,174.64,5.7251]
[1747243781930,5.7245,174.66,174.64,5.7251]
[1747243782322,72.82,174.67,174.64,5.7251]
[1747243782527,78.5444,174.67,174.64,5.7251]
[1747243783336,5.7246,174.66,174.64,5.7251]
[1747243783536,5.7246,174.66,174.63,5.7254]
[1747243785139,72.82,174.67,174.59,3.6372]
[1747243785338,72.82,174.67,174.56,72.88]
[1747243785942,72.82,174.67,174.55,1.7929]
[1747243786239,5.7266,174.6,174.57,5.7272]
[1747243787040,72.78,174.61,174.55,1.7929]
[1747243787941,5.7265,174.6,174.57,5.7272]
[1747243788243,72.78,174.61,174.55,1.7929]
[1747243788439,5.7265,174.6,174.57,5.7272]
[1747243789340,72.78,174.61,174.55,1.7929]
[1747243790041,78.5061,174.61,174.58,5.727]
[1747243790240,72.78,174.61,174.55,1.7929]
[1747243790440,72.78,174.61,174.52,76.4888]
[1747243790639,78.5064,174.61,174.58,5.7271]
[1747243790838,72.78,174.61,174.58,5.7271]
[1747243791341,72.78,174.61,174.51,495.04]
[1747243791540,72.78,174.61,174.52,72.86]
[1747243792046,72.74,174.61,174.52,72.86]
[1747243792441,78.4662,174.61,174.58,5.7269]
[1747243792642,72.74,174.61,174.52,72.86]
[1747243793043,72.74,174.61,174.59,5.7265]
[1747243793341,145.58,174.63,174.52,72.86]
[1747243793540,5.7261,174.62,174.59,5.7266]
[1747243794346,5.7262,174.61,174.58,5.7269]
[1747243795636,145.58,174.63,174.52,72.86]
[1747243796236,5.727,174.59,174.56,5.7276]
[1747243796642,145.58,174.63,174.52,72.86]
[1747243796840,5.7261,174.62,174.52,72.86]
[1747243797142,5.7261,174.62,174.53,16.53212663]
[1747243797336,5.7261,174.62,174.59,5.7267]
[1747243797842,5.7261,174.62,174.6,5.7264]
[1747243798243,145.58,174.63,174.52,72.86]
[1747243798641,5.7272,174.58,174.55,5.7279]
[1747243798844,78.4072,174.58,174.55,5.7279]
[1747243799440,72.68,174.58,174.56,5.7278]
[1747243799744,72.68,174.58,174.52,72.86]
[1747243800039,72.68,174.58,174.55,5.7279]
[1747243800245,72.68,174.58,174.52,72.86]
[1747243800641,72.68,174.58,174.56,5.7276]
[1747243800946,72.68,174.58,174.52,72.86]
[1747243801146,5.7277,174.57,174.54,5.7282]
[1747243801343,145.36,174.58,174.47,74.539]
[1747243801541,145.36,174.58,174.47,72.68]
[1747243801744,10.30907422,174.57,174.47,72.68]
[1747243801950,10.30907422,174.54,174.41,72.68]
[1747243802246,5.7308,174.47,174.44,5.7315]
[1747243802448,5.7308,174.47,174.41,72.68]
[1747243802449,72.66,174.47,174.41,72.68]
[1747243803142,72.66,174.47,174.39,1.26033]
[1747243803341,72.66,174.47,174.4,5.7328]
[1747243803542,72.66,174.47,174.39,1.26033]
[1747243803740,5.7328,174.41,174.39,1.26033]
[1747243803943,72.64,174.4,174.36,5.7341]
[1747243804148,72.64,174.39,174.32,72.68]
[1747243804446,72.64,174.39,174.3,3.719]
[1747243805148,72.64,174.39,174.28,74.6008]
[1747243805349,72.64,174.39,174.28,72.7]
[1747243806151,72.64,174.4,174.31,16.51383961]
[1747243806350,72.64,174.4,174.32,1.7744]
[1747243806549,72.64,174.4,174.39,5.7334]
[1747243807455,72.64,174.44,174.43,5.7318]
[1747243807753,0.2054,174.55,174.39,16.51383961]
[1747243808055,145.38,174.54,174.39,16.51383961]
[1747243808251,145.38,174.54,174.39,18.28823961]
[1747243808452,72.64,174.53,174.46,5.7308]
[1747243808752,72.64,174.53,174.39,1.7744]
[1747243808952,16.51383961,174.52,174.38,72.72]
[1747243809253,5.7306,174.48,174.38,72.72]
[1747243809452,72.64,174.47,174.38,72.72]
[1747243809650,72.64,174.47,174.43,5.7318]
[1747243810152,72.64,174.47,174.38,72.72]
[1747243810348,72.64,174.47,174.46,5.7311]
[1747243810552,72.72,174.48,174.38,145.36]
[1747243810952,72.64,174.49,174.48,5.7304]
[1747243811948,72.72,174.52,174.38,145.36]
[1747243812153,72.72,174.52,174.51,5.7294]
[1747243812351,496.7002,174.57,174.43,72.72]
[1747243812651,72.62,174.54,174.53,5.7286]
[1747243812958,72.62,174.54,174.44,1.9527]
[1747243813161,72.62,174.54,174.43,72.72]
[1747243813358,1.9241,174.53,174.43,72.72]
[1747243814059,5.7297,174.51,174.45,5.7313]
[1747243814258,5.7297,174.51,174.43,72.72]
[1747243814560,1.9241,174.53,174.43,72.72]
[1747243815062,5.7303,174.49,174.45,5.7311]
[1747243815357,72.6,174.49,174.43,72.72]
[1747243815561,72.6,174.49,174.47,5.7306]
[1747243815860,72.6,174.49,174.43,72.72]
[1747243816259,72.72,174.51,174.43,72.72]
[1747243816460,145.32,174.51,174.43,72.72]
[1747243816661,145.32,174.51,174.48,5.7302]
[1747243817053,16.51383961,174.62,174.43,72.72]
[1747243817360,5.7285,174.54,174.5,5.7297]
[1747243817564,72.58,174.54,174.44,3.8666]
[1747243817861,72.58,174.54,174.51,5.7292]
[1747243818062,72.58,174.54,174.44,3.8666]
[1747243819262,72.56,174.58,174.45,16.51383961]
[1747243819458,72.56,174.58,174.57,5.7275]
[1747243819655,7.5628,174.61,174.57,5.7275]
[1747243819854,72.56,174.6,174.51,72.72]
[1747243821263,72.56,174.6,174.46,1.8746]
[1747243821567,5.73,174.5,174.46,5.7307]
[1747243821765,72.54,174.51,174.44,3.8666]
[1747243821954,72.54,174.5,174.44,3.8666]
[1747243822765,72.54,174.5,174.47,5.7305]
[1747243822966,72.54,174.5,174.44,3.8666]
[1747243823165,72.54,174.5,174.44,1.9161]
[1747243823670,5.7287,174.54,174.51,5.7293]
[1747243823861,78.2487,174.54,174.44,1.9161]
[1747243824368,5.7288,174.53,174.44,1.9161]
[1747243824666,72.52,174.54,174.44,1.9161]
[1747243825373,5.7303,174.49,174.45,5.7311]
[1747243826268,5.7304,174.48,174.45,5.7311]
[1747243826669,72.52,174.54,174.46,5.731]
[1747243826868,5.73,174.5,174.46,5.731]
[1747243827164,72.52,174.54,174.46,5.731]
[1747243827369,72.52,174.54,174.47,5.7306]
[1747243827561,72.52,174.54,174.44,1.9161]
[1747243828371,72.52,174.54,174.48,5.7302]
[1747243828769,72.52,174.54,174.44,1.9161]
[1747243828970,5.7288,174.53,174.49,5.7299]
[1747243829171,72.52,174.54,174.44,1.9161]
[1747243829469,78.2487,174.54,174.44,1.9161]
[1747243830068,72.46,174.56,174.45,88.97383961]
[1747243830374,72.46,174.57,174.45,88.97383961]
[1747243830776,5.7282,174.55,174.45,88.97383961]
[1747243831071,72.46,174.56,174.45,88.97383961]
[1747243831274,5.7281,174.55,174.52,5.7289]
[1747243831468,72.46,174.56,174.48,72.46]
[1747243831866,72.46,174.56,174.44,74.3761]
[1747243832069,72.46,174.56,174.44,1.9161]
[1747243832270,1.4793,174.55,174.44,1.9161]
[1747243832570,72.46,174.54,174.44,1.9161]
[1747243832967,5.7297,174.51,174.47,5.7305]
[1747243833164,78.1497,174.51,174.47,5.7305]
[1747243833470,5.7298,174.5,174.47,5.7305]
[1747243833774,72.42,174.51,174.44,1.9161]
[1747243834675,5.7301,174.49,174.46,5.7308]
[1747243834974,72.42,174.51,174.44,1.9161]
[1747243835677,5.7298,174.5,174.46,5.731]
[1747243835876,5.7298,174.5,174.44,1.9161]
[1747243836372,5.7298,174.5,174.47,5.7306]
[1747243836675,72.42,174.51,174.44,1.9161]
[1747243836875,72.46,174.54,174.44,1.9161]
[1747243837076,144.86,174.54,174.44,1.9161]
[1747243837272,72.4,174.54,174.44,1.9161]
[1747243837468,72.4,174.54,174.5,5.7297]
[1747243837879,5.7291,174.52,174.44,1.9161]
[1747243838380,5.7291,174.52,174.5,5.7297]
[1747243838875,72.4,174.54,174.44,1.9161]
[1747243839281,72.46,174.58,174.45,88.89383961]
[1747243839484,72.38,174.57,174.45,88.89383961]
[1747243839982,5.7278,174.56,174.54,5.7284]
[1747243840171,72.38,174.57,174.49,72.46]
[1747243840477,5.7279,174.56,174.49,72.46]
[1747243840681,72.38,174.57,174.49,72.46]
[1747243840983,5.7279,174.56,174.53,5.7288]
[1747243841180,72.38,174.57,174.49,72.46]
[1747243841385,72.46,174.58,174.49,72.46]
[1747243841679,144.82,174.58,174.49,72.46]
[1747243841880,72.46,174.58,174.49,72.46]
[1747243842183,5.728,174.56,174.49,72.46]
[1747243842680,144.8,174.58,174.49,72.46]
[1747243843272,5.728,174.56,174.52,5.7289]
[1747243843476,144.8,174.58,174.52,5.7289]
[1747243844184,144.8,174.58,174.53,5.7287]
[1747243844384,72.32,174.6,174.51,16.51383961]
[1747243844685,72.46,174.63,174.52,1.8587]
[1747243844983,207.47840077,174.64,174.52,1.8587]
[1747243845181,135.15840077,174.64,174.52,1.8587]
[1747243845379,135.15840077,174.64,174.55,16.51383961]
[1747243845583,5.7258,174.63,174.56,74.414]
[1747243845782,5.7258,174.63,174.6,5.7263]
[1747243845983,135.15840077,174.64,174.56,74.414]
[1747243846185,5.7256,174.63,174.56,74.414]
[1747243846786,135.15840077,174.64,174.61,5.7261]
[1747243846987,135.15840077,174.64,174.56,76.3061]
[1747243847888,74.1731,174.68,174.56,76.3061]
[1747243848386,5.7254,174.64,174.56,76.3061]
[1747243848888,5.7254,174.64,174.61,5.7261]
[1747243850088,72.24,174.66,174.56,76.3061]
[1747243850589,77.9647,174.66,174.63,5.7254]
[1747243850793,72.24,174.66,174.63,5.7254]
[1747243850990,5.7245,174.67,174.63,5.7252]
[1747243851187,72.24,174.66,174.57,72.44]
[1747243852290,72.24,174.66,174.58,5.7271]
[1747243852494,144.66,174.66,174.57,72.44]
[1747243852892,144.66,174.66,174.58,5.7268]
[1747243853094,144.66,174.66,174.57,72.44]
[1747243853792,5.726,174.62,174.59,5.7267]
[1747243854695,144.66,174.66,174.57,72.44]
[1747243855294,5.7254,174.64,174.57,72.44]
[1747243855594,144.66,174.66,174.57,72.44]
[1747243856196,72.18,174.65,174.57,72.44]
[1747243856391,77.9051,174.65,174.57,72.44]
[1747243856597,72.18,174.65,174.57,72.44]
[1747243857694,72.42,174.7,174.57,72.44]
[1747243857896,72.16,174.69,174.57,72.44]
[1747243858498,72.16,174.69,174.61,5.7259]
[1747243858700,72.16,174.69,174.57,72.44]
[1747243859809,72.14,174.68,174.57,72.44]
[1747243860003,72.42,174.7,174.57,88.95383961]
[1747243860190,72.14,174.69,174.57,88.95383961]
[1747243860700,5.725,174.65,174.62,5.7256]
[1747243860900,72.14,174.69,174.57,88.95383961]
[1747243861205,5.7242,174.67,174.64,5.725]
[1747243861602,72.14,174.69,174.64,5.725]
[1747243861801,5.7244,174.67,174.64,5.725]
[1747243862198,5.7244,174.67,174.57,88.95383961]
[1747243862404,77.824,174.68,174.65,5.7248]
[1747243862606,72.1,174.68,174.65,5.7248]
[1747243862903,77.8237,174.69,174.57,88.95383961]
[1747243863408,72.42,174.7,174.58,11.4541]
[1747243863601,144.52,174.7,174.61,16.51383961]
[1747243863805,0.68295,174.71,174.62,72.12]
[1747243864405,0.68295,174.71,174.65,16.51383961]
[1747243864703,0.68295,174.71,174.7,5.7232]
[1747243865503,0.68295,174.71,174.67,72.12]
[1747243865906,5.7235,174.7,174.67,72.12]
[1747243866106,0.68295,174.71,174.67,72.12]
[1747243867002,0.68295,174.71,174.7,5.7232]
[1747243867197,0.68295,174.71,174.67,72.12]
[1747243867701,0.68295,174.71,174.69,5.7233]
[1747243868207,0.68295,174.71,174.67,72.12]
[1747243869407,5.7234,174.7,174.67,72.12]
[1747243870006,5.7234,174.7,174.67,77.8439]
[1747243870207,6.40595,174.71,174.67,72.12]
[1747243870907,0.68295,174.71,174.67,72.12]
[1747243871709,5.7232,174.7,174.67,77.844]
[1747243871902,5.7232,174.7,174.67,5.724]
[1747243872109,5.7198,174.81,174.75,5.7212]
[1747243872309,72.0,174.86,174.76,72.1]
[1747243872609,5.7186,174.85,174.79,5.72]
[1747243872807,72.0,174.86,174.76,72.1]
[1747243873108,164.88006612,174.85,174.76,72.1]
[1747243873706,5.7197,174.81,174.76,77.821]
[1747243873906,164.88006612,174.85,174.72,1.7814]
[1747243874107,164.88006612,174.85,174.75,72.1]
[1747243874307,164.88006612,174.85,174.72,1.7814]
[1747243874507,164.88006612,174.85,174.71,494.76]
[1747243874811,1.02516169,174.84,174.72,72.1]
[1747243875013,1.02516169,174.84,174.73,72.1]
[1747243875206,2.69343608,174.83,174.73,72.1]
[1747243875406,1.02493608,174.82,174.73,72.1]
[1747243875608,71.96,174.81,174.73,72.1]
[1747243875914,5.7204,174.79,174.73,72.1]
[1747243877605,71.96,174.81,174.71,494.76]
[1747243877808,71.92,174.85,174.78,5.7204]
[1747243878113,71.92,174.85,174.78,72.1]
[1747243878512,71.92,174.84,174.8,5.7199]
[1747243878710,71.92,174.84,174.78,72.1]
[1747243879014,71.92,174.84,174.81,5.7195]
[1747243879616,5.7181,174.86,174.78,72.1]
[1747243879812,1.6653,174.89,174.78,72.1]
[1747243880209,5.7179,174.87,174.83,5.7188]
[1747243880414,71.9,174.88,174.78,72.1]
[1747243881118,71.9,174.88,174.82,5.7192]
[1747243881320,71.9,174.88,174.79,72.08]
[1747243881613,71.9,174.88,174.84,5.7185]
[1747243881819,71.9,174.88,174.79,72.08]
[1747243882117,5.7176,174.87,174.79,72.08]
[1747243882618,5.7181,174.86,174.8,5.7199]
[1747243883213,5.7181,174.86,174.79,72.08]
[1747243883214,5.7195,174.82,174.78,72.06]
[1747243883414,71.9,174.88,174.78,72.06]
[1747243884217,5.7192,174.83,174.78,77.7805]
[1747243884416,74.0036,174.9,174.78,77.7805]
[1747243884417,74.0036,174.9,174.78,72.06]
[1747243884616,71.84,174.89,174.78,72.06]
[1747243885013,74.0036,174.9,174.79,1.9101]
[1747243885219,71.84,174.89,174.79,1.9101]
[1747243885419,74.0036,174.9,174.8,16.51383961]
[1747243885623,71.84,174.89,174.8,16.51383961]
[1747243885921,5.7189,174.84,174.8,22.23353961]
[1747243886226,5.7189,174.84,174.8,16.51383961]
[1747243886416,71.84,174.89,174.79,1.9101]
[1747243886615,71.84,174.89,174.8,72.06]
[1747243887517,5.7185,174.85,174.81,5.7194]
[1747243887720,71.84,174.89,174.8,72.06]
[1747243888026,5.7182,174.86,174.8,72.06]
[1747243888524,71.84,174.89,174.82,5.7193]
[1747243889124,71.84,174.89,174.8,72.06]
[1747243889625,5.7182,174.86,174.8,72.06]
[1747243889927,71.84,174.89,174.8,72.06]
[1747243890222,5.7185,174.85,174.82,5.7191]
[1747243890625,71.84,174.89,174.82,5.7191]
[1747243890825,5.7186,174.84,174.81,5.7195]
[1747243891022,71.84,174.89,174.81,5.7195]
[1747243891222,5.7183,174.85,174.81,5.7195]
[1747243891426,5.4716,174.93,174.8,72.06]
[1747243891625,71.76,174.92,174.77,3.7755]
[1747243891828,5.7176,174.87,174.84,5.7185]
[1747243892026,77.4776,174.87,174.84,5.7185]
[1747243893726,71.74,174.89,174.83,71.78]
[1747243894125,5.7182,174.86,174.83,77.4989]
[1747243894329,71.74,174.89,174.83,71.78]
[1747243894523,1.4716,174.93,174.83,71.78]
[1747243895023,71.72,174.92,174.83,71.78]
[1747243895222,72.06,174.94,174.83,71.78]
[1747243895524,71.72,174.93,174.83,71.78]
[1747243895830,5.7159,174.93,174.84,3.7264]
[1747243896525,71.72,174.94,174.84,3.7264]
[1747243896724,71.7,174.95,174.84,20.24023961]
[1747243897129,71.7,174.95,174.91,5.7163]
[1747243897424,134.88769001,174.98,174.89,71.76]
[1747243897727,206.64769001,174.98,174.84,3.7264]
[1747243897927,206.64769001,174.98,174.85,71.76]
[1747243898729,206.64769001,174.98,174.87,5.7174]
[1747243899226,206.64769001,174.98,174.86,1.8763]
[1747243899629,1.02959141,174.97,174.86,1.8763]
[1747243899831,1.02959141,174.97,174.86,7.5941]
[1747243900030,1.02959141,174.97,174.86,1.8763]
[1747243900629,1.02959141,174.97,174.86,7.5942]
[1747243901229,5.7167,174.9,174.86,7.5942]
[1747243902230,71.64,174.93,174.86,1.8763]
[1747243903133,5.7172,174.89,174.86,1.8763]
[1747243904433,5.7173,174.88,174.86,1.8763]
[1747243904733,71.64,174.93,174.86,1.8763]
[1747243905032,5.7171,174.89,174.86,7.5942]
[1747243905233,5.7171,174.89,174.86,1.8763]
[1747243905433,5.7173,174.89,174.86,1.8763]
[1747243906234,5.7174,174.88,174.86,1.8763]
[1747243906433,71.64,174.93,174.86,1.8763]
[1747243906734,5.717,174.89,174.86,7.594]
[1747243906935,5.717,174.89,174.86,1.8763]
[1747243907634,71.64,174.93,174.86,1.8763]
[1747243908034,5.7164,174.91,174.87,5.7175]
[1747243908240,71.64,174.93,174.87,5.7175]
[1747243908533,71.64,174.93,174.86,7.5942]
[1747243908739,71.64,174.93,174.86,1.8763]
[1747243909035,5.7164,174.91,174.87,5.7174]
[1747243909234,71.64,174.93,174.87,5.7174]
[1747243909636,5.7165,174.91,174.88,5.7173]
[1747243909838,5.7165,174.91,174.86,1.8763]
[1747243910837,5.7165,174.91,174.87,5.7174]
[1747243911239,5.7161,174.92,174.86,1.8763]
[1747243911540,71.52,174.94,174.88,10.26240617]
[1747243911729,206.64769001,174.98,174.88,10.26240617]
[1747243911931,71.52,174.97,174.9,5.7163]
[1747243912237,5.7156,174.94,174.9,5.7163]
[1747243912440,5.7156,174.94,174.91,5.7161]
[1747243912637,71.52,174.97,174.86,1.8763]
[1747243912837,71.52,174.97,174.86,73.6163]
[1747243913038,71.52,174.97,174.87,5.7176]
[1747243913234,5.7162,174.92,174.86,73.6163]
[1747243913537,5.7162,174.92,174.86,83.87870617]
[1747243913738,71.52,174.97,174.86,83.87870617]
[1747243913936,5.7164,174.91,174.86,83.87870617]
[1747243914134,5.7164,174.91,174.88,5.7171]
[1747243915033,5.7161,174.92,174.89,5.717]
[1747243915235,71.52,174.97,174.86,83.87870617]
[1747243915537,71.52,174.97,174.89,5.717]
[1747243916036,5.7162,174.92,174.89,5.717]
[1747243917443,5.7164,174.91,174.86,83.87870617]
[1747243917835,5.7164,174.91,174.88,5.7171]
[1747243918032,5.7164,174.91,174.86,83.87870617]
[1747243918438,5.7161,174.92,174.89,5.717]
[1747243918739,71.52,174.97,174.86,83.87870617]
[1747243919240,5.716,174.92,174.89,5.7169]
[1747243919540,71.42,174.97,174.89,10.26240617]
[1747243919733,5.7152,174.95,174.93,5.7156]
[1747243919936,71.42,174.97,174.93,5.7156]
[1747243920137,71.42,174.97,174.87,10.26240617]
[1747243920337,71.42,174.97,174.88,71.42]
[1747243920843,71.42,174.97,174.93,5.7157]
[1747243921142,71.4,174.97,174.88,71.42]
[1747243921739,134.88769001,174.98,174.9,10.26240617]
[1747243922043,134.88769001,174.98,174.93,10.26240617]
[1747243922340,134.88769001,174.98,174.93,81.66240617]
[1747243922533,134.88769001,174.98,174.96,5.7144]
[1747243923041,134.88769001,174.98,174.93,81.66240617]
[1747243923546,71.4,175.06,174.96,10.26240617]
[1747243924041,5.7123,175.04,174.96,10.26240617]
[1747243924444,71.36,175.06,174.96,10.26240617]
[1747243926039,5.7124,175.03,174.96,10.26240617]
[1747243926245,71.36,175.06,174.96,10.26240617]
[1747243926444,166.81856612,175.08,174.98,5.7139]
[1747243926643,71.32,175.07,174.96,10.26240617]
[1747243926845,71.32,175.07,174.96,81.66240617]
[1747243927047,71.32,175.07,174.96,77.1146]
[1747243927442,10.26240617,175.06,174.93,494.04]
[1747243927644,10.26240617,175.03,174.91,75.1794]
[1747243927845,71.3,175.02,174.91,75.1794]
[1747243928046,5.7149,174.96,174.92,5.7158]
[1747243928246,5.7149,174.96,174.91,75.1794]
[1747243928548,5.715,174.95,174.91,75.1794]
[1747243928750,71.28,174.97,174.91,73.3371]
[1747243929047,5.7153,174.95,174.91,77.1161]
[1747243929248,71.28,174.97,174.91,71.4]
[1747243929650,71.28,174.97,174.88,10.26240617]
[1747243929849,71.28,174.97,174.89,71.4]
[1747243930249,5.7156,174.94,174.9,5.7164]
[1747243930443,71.28,174.97,174.89,71.4]
[1747243930649,5.7148,174.96,174.93,5.7156]
[1747243930848,71.28,174.97,174.89,71.4]
[1747243931148,5.7152,174.95,174.92,5.7159]
[1747243931352,71.28,174.97,174.89,71.4]
[1747243931856,5.7153,174.95,174.91,5.7162]
[1747243932152,71.28,174.97,174.87,1.8575]
[1747243932346,5.7165,174.91,174.88,77.1172]
[1747243932656,71.24,174.92,174.83,71.4]
[1747243932844,4.0,175.0,174.83,71.4]
[1747243933148,164.88006612,175.06,174.9,10.26240617]
[1747243933348,10.26240617,175.04,174.91,76.9461]
[1747243933553,71.24,175.03,174.91,76.9461]
[1747243934456,5.7139,174.99,174.94,5.7151]
[1747243934758,71.24,175.03,174.91,76.9461]
[1747243935552,5.7135,175.0,174.96,5.7144]
[1747243935947,71.24,175.03,174.91,76.9461]
[1747243936151,5.7138,174.99,174.95,5.7148]
[1747243936451,71.2,174.98,174.91,5.5461]
[1747243936650,76.9143,174.98,174.94,5.7153]
[1747243937456,76.9143,174.98,174.95,5.715]
[1747243937658,71.2,174.98,174.91,5.5461]
[1747243938057,71.2,174.98,174.96,5.7146]
[1747243938457,71.2,174.98,174.91,5.5461]
[1747243938854,5.7131,175.01,174.93,10.26240617]
[1747243939258,76.8731,175.01,174.98,5.714]
[1747243939861,5.7131,175.01,174.98,5.714]
[1747243940059,76.8731,175.01,174.98,5.714]
[1747243940255,71.38,175.04,174.93,10.26240617]
[1747243940559,71.38,175.04,174.91,5.5461]
[1747243940560,142.52,175.04,174.96,10.26240617]
[1747243940862,566.8081,175.08,174.96,10.26240617]
[1747243941059,71.14,175.07,174.96,10.26240617]
[1747243941659,5.7118,175.05,175.02,5.7124]
[1747243942057,71.38,175.08,174.96,10.26240617]
[1747243942256,71.38,175.08,174.95,71.38]
[1747243942257,142.5,175.08,175.0,81.64240617]
[1747243942458,71.12,175.08,175.0,81.64240617]
[1747243942655,236.00006612,175.09,175.06,5.7113]
[1747243942857,236.00006612,175.09,175.0,81.64240617]
[1747243943058,170.59066612,175.09,175.05,5.7115]
[1747243943258,76.8106,175.09,175.05,5.7115]
[1747243943866,71.1,175.09,175.04,5.712]
[1747243944058,71.1,175.09,175.0,71.38]
[1747243944259,71.1,175.09,174.98,5.7714]
[1747243944456,71.1,175.09,174.98,3.895]
[1747243944660,10.26240617,175.07,174.95,71.38]
[1747243944867,71.38,175.06,174.95,71.38]
[1747243945469,5.7129,175.02,174.98,5.7138]
[1747243945663,76.7929,175.02,174.98,5.7138]
[1747243945965,76.7929,175.02,174.95,71.38]
[1747243946164,76.7928,175.02,174.99,5.7136]
[1747243946565,71.38,175.06,174.96,10.26240617]
[1747243946765,71.06,175.05,174.96,10.26240617]
[1747243946965,76.7718,175.05,175.02,5.7127]
[1747243947166,71.06,175.05,174.97,1.8798]
[1747243947366,5.7132,175.01,174.94,71.38]
[1747243947775,71.38,175.06,174.96,10.26240617]
[1747243947975,71.04,175.05,174.96,10.26240617]
[1747243949177,71.04,175.05,174.96,81.28240617]
[1747243949473,10.26240617,175.09,174.96,81.28240617]
[1747243949676,5.712,175.05,175.0,10.26240617]
[1747243949873,71.02,175.11,174.97,10.26240617]
[1747243950178,5.7129,175.02,174.98,71.02]
[1747243950378,5.7129,175.02,174.97,5.7144]
[1747243950683,71.02,175.04,174.94,10.26240617]
[1747243950975,71.02,175.04,174.93,74.8537]
[1747243951376,71.02,175.04,174.94,10.26240617]
[1747243952074,5.7131,175.01,174.97,5.7141]
[1747243952475,71.02,175.04,174.94,10.26240617]
[1747243952776,5.7133,175.01,174.97,5.7143]
[1747243952977,71.02,175.04,174.94,10.26240617]
[1747243953176,5.7131,175.01,174.97,5.7143]
[1747243953375,71.02,175.04,174.93,74.8537]
[1747243953981,81.28240617,175.04,174.93,71.02]
[1747243954182,1.8585,175.03,174.93,71.02]
[1747243954383,5.7149,174.96,174.93,71.02]
[1747243954884,5.7149,174.96,174.93,76.7356]
[1747243955179,1.6749,174.98,174.93,71.02]
[1747243955678,5.7145,174.97,174.93,76.7356]
[1747243955883,70.94,175.01,174.93,71.02]
[1747243956278,5.7144,174.97,174.93,71.02]
[1747243956780,5.7148,174.96,174.93,71.02]
[1747243956983,70.94,175.01,174.93,71.02]
[1747243957281,5.7151,174.95,174.93,71.02]
[1747243957988,5.7153,174.94,174.93,71.02]
[1747243958780,5.7151,174.95,174.93,71.02]
[1747243959378,70.94,175.01,174.93,71.02]
[1747243959579,70.94,175.01,174.94,5.7153]
[1747243959781,5.7142,174.98,174.94,5.7153]
[1747243960084,5.7142,174.98,174.93,71.02]
[1747243960380,5.7146,174.97,174.93,71.02]
[1747243960584,70.9,175.01,174.93,71.02]
[1747243961086,5.7153,174.94,174.93,71.02]
[1747243961489,5.7152,174.95,174.93,71.02]
[1747243961887,70.9,175.01,174.93,71.02]